[Event "FRA-chT Top 12 2019"]
[Site "Brest"]
[Date "2019.05.18"]
[Round "1.6"]
[White "Dornbusch, Tatiana"]
[Black "Charmeteau, Sven"]
[Result "1/2-1/2"]
[ECO "D77"]
[WhiteElo "2285"]
[BlackElo "2292"]
[Annotator "NA RC"]
[PlyCount "134"]
[EventDate "2019.05.18"]
[EventType "team-tourn"]
[EventCountry "FRA"]
[SourceTitle "playchess.com"]
[Source "ChessBase"]
[SourceQuality "1"]
[TimeControl "40/5400+30:1800+30"]

1. d4 {[%emt 0:00:00]} Nf6 {[%emt 0:00:00]} 2. Nf3 {[%emt 0:01:48]} g6 {[%emt 0:00:00]} 3. g3 {[%emt 0:01:15]} Bg7 {[%emt 0:00:00]} 4. Bg2 {[%emt 0:00:08]} O-O {[%emt 0:00:04]} 5. c4 {[%emt 0:01:57]} d5 {[%emt 0:00:36]} 6. O-O {[%emt 0:02:24]} dxc4 {[%emt 0:04:33]} 7. Ne5 {[%emt 0:11:16]} c5 {[%emt 0:09:11]} 8. dxc5 {[%emt 0:03:34]} Qc7 {[%emt 0:00:25] D77: Fianchetto Grünfeld: 6 0-0: Replies other than 6...c6} 9. c6 {[%emt 0:13:16]} (9. Nxc4 Qxc5 10. Nba3 Nc6 11. e4 Rd8 12. Be3 Nd4 13. h3 Be6 14. Rc1 Rac8 15. e5 Ne8 16. Nd6 exd6 17. Rxc5 dxc5 18. Bxb7 {0-1 (38) Ladva,O (2531)-Kantans,T (2531) Viljandi 2017}) 9... Nxc6 {[%emt 0:06:11]} 10. Nxc6 {[%emt 0:00:16]} bxc6 {[%emt 0:00:05]} 11. Qc2 {[%emt 0:16:43]} Be6 {[%emt 0:04:11]} 12. Na3 $146 {[%emt 0:01:24]} ({Predecessor:} 12. Bd2 Nd5 13. Na3 Qe5 14. e4 Qxb2 15. exd5 Bxd5 16. Qxb2 Bxb2 {1-0 (56) Perez Garcia,A (2322)-Dominguez Fernandez,A (1988) Salobrena 2015}) 12... c3 {[%emt 0:10:08]} 13. Qxc3 {[%emt 0:05:23]} Nd5 {[%emt 0:00:39]} 14. Qc5 {[%emt 0:09:03]} Qb6 {[%emt 0:43:16]} 15. Qxb6 {[%emt 0:00:36]} axb6 {[%emt 0:00:44]} 16. Nc2 {[%emt 0:00:55]} Ra4 {[%emt 0:00:55]} 17. a3 {[%emt 0:03:35]} Rc8 {[%emt 0:09:26]} 18. e4 {[%emt 0:05:16]} Nc7 {[%emt 0:00:58]} 19. Bg5 {[%emt 0:05:36]} Bb3 {[%emt 0:00:40]} 20. Nb4 {[%emt 0:00:52]} Ne6 {[%emt 0:06:12]} 21. Bxe7 {[%emt 0:00:35]} Be5 {[%emt 0:01:04]} 22. Nd3 {[%emt 0:05:43]} Bd4 {[%emt 0:00:02]} 23. Bd6 {[%emt 0:02:57]} c5 {[%emt 0:00:21]} 24. Nf4 {[%emt 0:03:07]} Rd8 {[%emt 0:01:35]} 25. Nxe6 {[%emt 0:00:52]} Rxd6 {[%emt 0:00:26]} 26. Nxd4 {[%emt 0:00:11]} Rdxd4 {[%emt 0:00:36]} 27. f4 {[%emt 0:01:00]} Rd2 {[%emt 0:00:40]} 28. Rf2 {[%emt 0:00:13]} Rad4 {[%emt 0:00:25]} 29. Raf1 {[%emt 0:00:27]} Bc4 {[%emt 0:00:23]} 30. Rxd2 {[%emt 0:00:20]} Rxd2 {[%emt 0:00:03]} 31. Rf2 {[%emt 0:00:06]} Rd1+ {[%emt 0:00:11]} 32. Bf1 {[%emt 0:00:16]} Bd3 {[%emt 0:01:25]} 33. e5 {[%emt 0:01:22]} Rb1 {[%emt 0:00:05]} 34. a4 {[%emt 0:03:53]} c4 {[%emt 0:00:26]} 35. Kg2 {[%emt 0:00:19]} Bxf1+ {[%emt 0:00:09]} 36. Rxf1 {[%emt 0:00:02]} Rxb2+ {[%emt 0:00:08]} 37. Kf3 {[%emt 0:00:21]} c3 {[%emt 0:01:43]} 38. Rc1 {[%emt 0:00:41]} c2 {[%emt 0:00:32]} 39. Ke2 {[%emt 0:00:24]} Ra2 {[%emt 0:00:15]} 40. Kd3 {[%emt 0:00:39]} Rxa4 {[%emt 0:00:41]} 41. Rxc2 {[%emt 0:30:13]} Rb4 {[%emt 0:30:34]} 42. Rc8+ {[%emt 0:00:00]} Kg7 {[%emt 0:00:00]} 43. Kc3 {[%emt 0:00:00]} Rb1 {[%emt 0:00:00]} 44. Rb8 {[%emt 0:00:00]} h5 {[%emt 0:00:00]} 45. Rb7 {[%emt 0:00:00]} Kf8 {[%emt 0:00:00]} 46. Kd4 {[%emt 0:00:00]} Rb5 {[%emt 0:00:00]} 47. Kc4 {[%emt 0:00:00]} Rb2 {[%emt 0:00:00]} 48. Kd5 {[%emt 0:00:00]} Rxh2 {[%emt 0:01:52]} 49. Rxb6 {[%emt 0:00:00]} Re2 {[%emt 0:01:00]} 50. Rb3 {[%emt 0:00:00]} Kg7 {[%emt 0:00:24]} 51. Kd6 {[%emt 0:00:00]} Rf2 $11 {[%emt 0:01:35]} 52. Rb7 {[%emt 0:05:50]} Ra2 {[%emt 0:00:11]} 53. Ke7 {[%emt 0:00:45]} Ra4 {[%emt 0:00:42]} 54. Ke8 {[%emt 0:00:23]} Kg8 {[%emt 0:00:04]} 55. e6 {[%emt 0:00:41]} fxe6 {[%emt 0:00:52]} 56. Ke7 {[%emt 0:00:13]} Kg7 {[%emt 0:00:41]} 57. Kxe6+ {[%emt 0:00:09]} Kh6 {[%emt 0:00:01]} 58. Rb8 {[%emt 0:01:01]} Ra3 {[%emt 0:00:33]} 59. Kf6 {[%emt 0:00:19]} Ra6+ {[%emt 0:00:25]} 60. Kf7 {[%emt 0:00:03]} Kh7 {[%emt 0:00:26]} 61. Rb5 {[%emt 0:00:36]} Ra3 {[%emt 0:01:09]} 62. Rg5 {[%emt 0:00:31]} Ra7+ {[%emt 0:00:33]} 63. Kf6 {[%emt 0:00:13]} Ra6+ {[%emt 0:00:25]} 64. Kf7 {[%emt 0:00:14]} Kh6 {[%emt 0:00:14]} 65. Re5 {[%emt 0:01:15]} Ra3 {[%emt 0:00:39]} 66. Rg5 {[%emt 0:00:20]} Ra7+ {[%emt 0:00:38]} 67. Kf6 {[%emt 0:00:07]} Ra6+ {[%emt 0:00:24]} 1/2-1/2

[Event "FRA-chT Top 12 2019"]
[Site "Brest"]
[Date "2019.05.18"]
[Round "1.7"]
[White "Jeanne, Mickael"]
[Black "Ribbegren, Karl Johan"]
[Result "0-1"]
[ECO "B07"]
[WhiteElo "2150"]
[BlackElo "2209"]
[Annotator "NA"]
[PlyCount "74"]
[EventDate "2019.05.18"]
[EventType "team-tourn"]
[EventCountry "FRA"]
[SourceTitle "playchess.com"]
[Source "ChessBase"]
[SourceQuality "1"]
[TimeControl "40/5400+30:1800+30"]

1. e4 {[%emt 0:00:00]} d6 {[%emt 0:00:25]} 2. d4 {[%emt 0:00:13]} Nf6 {[%emt 0:00:33]} 3. Nc3 {[%emt 0:00:32]} c6 {[%emt 0:01:36]} 4. Be2 {[%emt 0:11:32]} Nbd7 {[%emt 0:02:49]} 5. Be3 {[%emt 0:03:38]} e5 {[%emt 0:01:00]} 6. a4 {[%emt 0:04:36]} Qc7 {[%emt 0:03:35]} 7. h3 {[%emt 0:01:45]} Be7 {[%emt 0:02:37]} 8. Nf3 {[%emt 0:00:18]} h6 {[%emt 0:06:08]} 9. O-O {[%emt 0:00:31]} g5 {[%emt 0:06:59]} 10. Nh2 {[%emt 0:03:14]} Nf8 {[%emt 0:04:00]} 11. Ng4 {[%emt 0:09:00]} Ng6 {[%emt 0:02:21]} 12. dxe5 {[%emt 0:03:28]} dxe5 {[%emt 0:00:25]} 13. Nxf6+ {[%emt 0:03:24]} Bxf6 {[%emt 0:00:11]} 14. Bc5 {[%emt 0:00:26]} Be7 {[%emt 0:02:22]} 15. Bxe7 {[%emt 0:04:52]} Qxe7 {[%emt 0:02:56]} 16. Bg4 {[%emt 0:05:25]} Bxg4 {[%emt 0:01:55]} 17. hxg4 {[%emt 0:06:00]} Rd8 {[%emt 0:05:30]} 18. Qf3 {[%emt 0:07:43]} Nh4 {[%emt 0:06:11]} 19. Qe2 {[%emt 0:01:33]} Qe6 {[%emt 0:18:06]} 20. Rad1 {[%emt 0:05:57]} h5 {[%emt 0:04:33]} 21. Rxd8+ {[%emt 0:02:33]} Kxd8 {[%emt 0:00:01]} 22. g3 {[%emt 0:00:26]} Ng6 {[%emt 0:01:36]} 23. Rd1+ {[%emt 0:04:40]} Ke7 {[%emt 0:03:23]} 24. gxh5 {[%emt 0:10:41]} Qh3 {[%emt 0:01:18]} 25. Qd3 {[%emt 0:06:07]} Kf8 {[%emt 0:01:42]} 26. Qd7 {[%emt 0:01:08]} Qxh5 {[%emt 0:01:10]} 27. Kf1 {[%emt 0:00:37]} Qf3 {[%emt 0:01:44]} 28. Ke1 {[%emt 0:01:55]} Rh1+ {[%emt 0:01:30]} 29. Kd2 {[%emt 0:00:04]} Qxf2+ {[%emt 0:00:55]} 30. Kc1 {[%emt 0:00:06]} Rxd1+ {[%emt 0:01:19]} 31. Nxd1 {[%emt 0:00:19]} Qxg3 {[%emt 0:00:19]} 32. Qxb7 {[%emt 0:00:14]} Qf4+ {[%emt 0:01:22]} 33. Kb1 {[%emt 0:00:07]} Qxe4 {[%emt 0:03:03]} 34. Qxa7 {[%emt 0:00:30]} Qe1 {[%emt 0:01:09]} 35. Qb8+ {[%emt 0:01:29]} Kg7 {[%emt 0:00:16]} 36. Qd6 {[%emt 0:00:09]} g4 {[%emt 0:00:19]} 37. Ka2 {[%emt 0:01:25]} g3 {[%emt 0:00:25]} 0-1

[Event "FRA-chT Top 12 2019"]
[Site "Brest"]
[Date "2019.05.18"]
[Round "1.7"]
[White "Cappon, John"]
[Black "Wirig, Anthony"]
[Result "0-1"]
[ECO "B23"]
[WhiteElo "2094"]
[BlackElo "2516"]
[Annotator "RC"]
[PlyCount "64"]
[EventDate "2019.05.18"]
[EventType "team-tourn"]
[EventCountry "FRA"]
[SourceTitle "playchess.com"]
[Source "ChessBase"]
[SourceQuality "1"]
[TimeControl "40/5400+30:1800+30"]

1. e4 {[%emt 0:00:00]} c5 {[%emt 0:00:40]} 2. Nc3 {[%emt 0:03:00]} a6 {[%emt 0:06:47]} 3. g3 {[%emt 0:00:26]} b5 {[%emt 0:01:25]} 4. Bg2 {[%emt 0:00:16]} Bb7 {[%emt 0:00:05]} 5. d3 {[%emt 0:00:27]} e6 {[%emt 0:00:34]} 6. Nh3 {[%emt 0:00:18]} d6 {[%emt 0:17:04]} 7. O-O {[%emt 0:06:31]} Nc6 {[%emt 0:05:31]} 8. f4 {[%emt 0:10:29]} Nf6 {[%emt 0:16:07]} 9. f5 {[%emt 0:14:44]} exf5 {[%emt 0:03:56]} 10. exf5 {[%emt 0:12:52]} Be7 {[%emt 0:03:33]} 11. Nf4 {[%emt 0:01:53]} Rb8 {[%emt 0:07:28]} 12. Ncd5 {[%emt 0:03:25]} O-O {[%emt 0:03:44]} 13. Nh5 {[%emt 0:24:03]} Ne5 {[%emt 0:04:31]} 14. Nhxf6+ {[%emt 0:07:00]} Bxf6 {[%emt 0:00:31]} 15. Qh5 {[%emt 0:01:00]} Bxd5 {[%emt 0:08:46]} 16. Bxd5 {[%emt 0:00:08]} Nd7 {[%emt 0:02:25]} 17. Kh1 {[%emt 0:03:08]} Nb6 {[%emt 0:02:12]} 18. Bf3 {[%emt 0:01:16]} Re8 {[%emt 0:01:11]} 19. g4 {[%emt 0:01:54]} h6 {[%emt 0:02:42]} 20. Kg2 {[%emt 0:02:43]} c4 {[%emt 0:03:29]} 21. d4 {[%emt 0:02:37]} c3 {[%emt 0:04:18]} 22. b3 {[%emt 0:01:13]} Bxd4 {[%emt 0:00:18]} 23. g5 {[%emt 0:00:39]} hxg5 {[%emt 0:00:42]} 24. Bxg5 {[%emt 0:00:40]} Bf6 {[%emt 0:00:09]} 25. Bf4 {[%emt 0:00:42]} Qc7 {[%emt 0:01:54]} 26. Rad1 {[%emt 0:00:37]} Rbd8 {[%emt 0:01:01]} 27. Kh1 {[%emt 0:00:11]} Qc5 {[%emt 0:01:36]} 28. Rg1 {[%emt 0:00:39]} Qf2 {[%emt 0:00:48]} 29. Rg2 {[%emt 0:01:08]} Re1+ {[%emt 0:00:27]} 30. Rxe1 {[%emt 0:00:07]} Qxe1+ {[%emt 0:00:03]} 31. Rg1 {[%emt 0:00:06]} Qf2 {[%emt 0:00:41]} 32. Bh6 {[%emt 0:00:43]} Bd4 {[%emt 0:00:49]} 0-1

[Event "FRA-chT Top 12 2019"]
[Site "Brest"]
[Date "2019.05.18"]
[Round "1.8"]
[White "Skripchenko, Almira"]
[Black "Monpeurt, Cyrielle"]
[Result "1-0"]
[ECO "A07"]
[WhiteElo "2406"]
[BlackElo "2166"]
[Annotator "NA"]
[PlyCount "82"]
[EventDate "2019.05.18"]
[EventType "team-tourn"]
[EventCountry "FRA"]
[SourceTitle "playchess.com"]
[Source "ChessBase"]
[SourceQuality "1"]
[TimeControl "40/5400+30:1800+30"]

1. Nf3 {[%emt 0:00:00]} d5 {[%emt 0:00:01]} 2. g3 {[%emt 0:00:00]} Nf6 {[%emt 0:00:36]} 3. Bg2 {[%emt 0:00:00]} c6 {[%emt 0:00:50]} 4. O-O {[%emt 0:00:35]} Bg4 {[%emt 0:01:31]} 5. d3 {[%emt 0:01:51]} e6 {[%emt 0:04:35]} 6. Nbd2 {[%emt 0:03:53]} Be7 {[%emt 0:06:14]} 7. h3 {[%emt 0:02:35]} Bxf3 {[%emt 0:02:09]} 8. Bxf3 {[%emt 0:02:53]} O-O {[%emt 0:03:58]} 9. e4 {[%emt 0:00:40]} Qc7 {[%emt 0:08:25]} 10. Qe2 {[%emt 0:04:13]} a5 {[%emt 0:07:24]} 11. a4 $11 {[%emt 0:04:38]} Na6 {[%emt 0:02:41]} 12. Bg2 {[%emt 0:04:09]} Rfe8 {[%emt 0:05:39]} 13. Nf3 {[%emt 0:07:42]} Nd7 {[%emt 0:05:41]} 14. d4 {[%emt 0:12:10]} Rac8 {[%emt 0:12:53]} 15. c3 {[%emt 0:05:38]} Bf8 {[%emt 0:00:00]} 16. Re1 {[%emt 0:18:01]} Nf6 {[%emt 0:11:32]} 17. e5 {[%emt 0:10:06]} Nd7 {[%emt 0:00:09]} 18. h4 {[%emt 0:00:05]} c5 {[%emt 0:01:09]} 19. h5 {[%emt 0:02:33]} cxd4 {[%emt 0:03:11]} 20. Nxd4 {[%emt 0:00:07]} Nac5 {[%emt 0:09:01]} 21. Bf4 {[%emt 0:05:44]} Qd8 {[%emt 0:02:54]} 22. Nb5 {[%emt 0:03:28]} Nb6 {[%emt 0:02:12]} 23. Qc2 {[%emt 0:00:06]} f6 {[%emt 0:03:27]} 24. Nd4 {[%emt 0:03:05]} Nc4 {[%emt 0:01:05]} 25. Rad1 {[%emt 0:02:43]} fxe5 {[%emt 0:02:26]} 26. Bxe5 {[%emt 0:00:03]} Nxe5 {[%emt 0:00:23]} 27. Rxe5 {[%emt 0:00:04]} Qf6 {[%emt 0:00:42]} 28. f4 {[%emt 0:01:01]} Bd6 {[%emt 0:01:09]} 29. Re2 {[%emt 0:01:28]} Kh8 {[%emt 0:00:12]} 30. Rde1 {[%emt 0:00:43]} e5 {[%emt 0:01:22]} 31. Bxd5 {[%emt 0:01:00]} e4 {[%emt 0:01:23]} 32. Bxe4 {[%emt 0:00:44]} Nxe4 {[%emt 0:00:26]} 33. Rxe4 {[%emt 0:00:06]} Red8 {[%emt 0:00:24]} 34. Kg2 {[%emt 0:01:37]} Bc5 {[%emt 0:00:38]} 35. Ne6 {[%emt 0:00:28]} Rg8 {[%emt 0:00:32]} 36. Ng5 {[%emt 0:02:10]} Qf5 {[%emt 0:00:35]} 37. R4e2 {[%emt 0:00:41]} Qd5+ {[%emt 0:00:29]} 38. Kh2 {[%emt 0:00:57]} g6 {[%emt 0:00:04]} 39. hxg6 {[%emt 0:00:39]} Rxg6 {[%emt 0:00:29]} 40. Qe4 {[%emt 0:00:36]} Rh6+ {[%emt 0:00:33]} 41. Kg2 {[%emt 0:30:08]} Rd6 {[%emt 0:03:53]} 1-0

[Event "FRA-chT Top 12 2019"]
[Site "Brest"]
[Date "2019.05.18"]
[Round "1.8"]
[White "Milliet, Sophie"]
[Black "Bolon, Karelle"]
[Result "1-0"]
[ECO "C00"]
[WhiteElo "2400"]
[BlackElo "2018"]
[Annotator "NA"]
[PlyCount "67"]
[EventDate "2019.05.18"]
[EventType "team-tourn"]
[EventCountry "FRA"]
[SourceTitle "playchess.com"]
[Source "ChessBase"]
[SourceQuality "1"]
[TimeControl "40/5400+30:1800+30"]

1. e4 {[%emt 0:00:00]} e6 {[%emt 0:00:00]} 2. d4 {[%emt 0:00:00]} d5 {[%emt 0:00:00]} 3. Bd3 {[%emt 0:03:45]} dxe4 {[%emt 0:04:33]} 4. Bxe4 {[%emt 0:00:02]} Nd7 {[%emt 0:02:23]} 5. Ne2 {[%emt 0:04:32]} Ngf6 {[%emt 0:01:18]} 6. Bf3 {[%emt 0:00:03]} c5 {[%emt 0:08:18]} 7. Be3 {[%emt 0:04:52]} cxd4 $11 {[%emt 0:09:33]} 8. Nxd4 {[%emt 0:00:27]} e5 {[%emt 0:00:43]} 9. Nb5 {[%emt 0:02:57]} e4 {[%emt 0:26:36]} 10. Be2 {[%emt 0:00:06]} Be7 {[%emt 0:12:46]} 11. Nd6+ {[%emt 0:01:20]} Kf8 {[%emt 0:00:22]} 12. Nc3 {[%emt 0:04:25]} Qa5 {[%emt 0:02:17]} 13. Qd2 {[%emt 0:05:16]} Qb4 {[%emt 0:04:44]} 14. O-O-O {[%emt 0:02:19]} Bxd6 {[%emt 0:00:20]} 15. a3 {[%emt 0:01:44]} Qa5 {[%emt 0:02:01]} 16. Qxd6+ {[%emt 0:00:05]} Kg8 {[%emt 0:02:14]} 17. Nd5 {[%emt 0:02:45]} h6 {[%emt 0:02:24]} 18. Bc4 {[%emt 0:06:20]} Kh7 {[%emt 0:05:33]} 19. Nc7 {[%emt 0:07:40]} Rb8 {[%emt 0:03:42]} 20. Bxf7 {[%emt 0:00:40]} Ne5 {[%emt 0:01:40]} 21. Bd5 {[%emt 0:11:48]} Nd3+ {[%emt 0:05:03]} 22. cxd3 {[%emt 0:14:20]} Bg4 {[%emt 0:00:11]} 23. f3 {[%emt 0:00:31]} exf3 {[%emt 0:03:03]} 24. Rd2 {[%emt 0:13:42]} Rhc8 {[%emt 0:00:27]} 25. Rc2 {[%emt 0:02:49]} Nxd5 {[%emt 0:00:51]} 26. Qxd5 {[%emt 0:01:22]} fxg2 {[%emt 0:01:15]} 27. Qxg2 {[%emt 0:02:38]} Rxc7 {[%emt 0:00:20]} 28. Qxg4 {[%emt 0:00:06]} Rxc2+ {[%emt 0:00:41]} 29. Kxc2 {[%emt 0:00:03]} b5 {[%emt 0:00:12]} 30. Rg1 {[%emt 0:01:13]} Qc7+ {[%emt 0:00:10]} 31. Kb1 {[%emt 0:00:05]} Qe7 {[%emt 0:00:28]} 32. Qg6+ {[%emt 0:01:38]} Kh8 {[%emt 0:00:09]} 33. Bd4 {[%emt 0:00:27]} Rb7 {[%emt 0:00:15]} 34. Qxh6+ {[%emt 0:00:18]} 1-0

[Event "FRA-chT Top 12 2019"]
[Site "Brest"]
[Date "2019.05.18"]
[Round "1.8"]
[White "Leconte, Maria"]
[Black "Fruteau, Sabine"]
[Result "1-0"]
[ECO "C77"]
[WhiteElo "2246"]
[BlackElo "2015"]
[Annotator "NA"]
[PlyCount "99"]
[EventDate "2019.05.18"]
[EventType "team-tourn"]
[EventCountry "FRA"]
[SourceTitle "playchess.com"]
[Source "ChessBase"]
[SourceQuality "1"]
[TimeControl "40/5400+30:1800+30"]

1. e4 {[%emt 0:00:00]} e5 {[%emt 0:00:00]} 2. Nf3 {[%emt 0:00:00]} Nc6 {[%emt 0:00:00]} 3. Bb5 {[%emt 0:00:14]} a6 {[%emt 0:00:00]} 4. Ba4 {[%emt 0:00:05]} Nf6 {[%emt 0:00:02]} 5. Qe2 {[%emt 0:00:06]} b5 {[%emt 0:03:52]} 6. Bb3 {[%emt 0:00:05]} Be7 {[%emt 0:00:56]} 7. c3 {[%emt 0:01:04]} O-O {[%emt 0:00:52]} 8. O-O {[%emt 0:00:19]} d6 {[%emt 0:01:35]} 9. h3 {[%emt 0:00:21]} Na5 {[%emt 0:03:39]} 10. Bc2 {[%emt 0:01:45]} c5 {[%emt 0:00:45]} 11. d3 {[%emt 0:00:57]} Qc7 {[%emt 0:02:26]} 12. Nbd2 {[%emt 0:01:35]} Re8 {[%emt 0:09:41]} 13. Re1 {[%emt 0:01:46]} Bf8 {[%emt 0:00:34]} 14. Nf1 {[%emt 0:00:31]} g6 {[%emt 0:15:15]} 15. Ng3 {[%emt 0:13:09]} Bg7 {[%emt 0:00:49]} 16. Nh2 {[%emt 0:01:28]} Nc6 {[%emt 0:07:10]} 17. Qf3 {[%emt 0:03:23]} Kh8 {[%emt 0:14:07]} 18. Bg5 {[%emt 0:07:57]} Ng8 {[%emt 0:00:17]} 19. h4 {[%emt 0:00:13]} f6 {[%emt 0:03:31]} 20. Bd2 {[%emt 0:01:17]} Be6 {[%emt 0:00:57]} 21. h5 {[%emt 0:01:06]} g5 {[%emt 0:05:47]} 22. Ng4 {[%emt 0:12:25]} Qf7 {[%emt 0:08:38]} 23. Nf5 {[%emt 0:00:45]} Qxh5 {[%emt 0:02:52]} 24. Nxd6 {[%emt 0:00:32]} Re7 {[%emt 0:05:32]} 25. Nf5 {[%emt 0:05:35]} Bxf5 {[%emt 0:02:26]} 26. exf5 {[%emt 0:07:37]} Rc8 {[%emt 0:00:42]} 27. Nxe5 {[%emt 0:00:03]} Qxf3 {[%emt 0:00:45]} 28. Nxf3 {[%emt 0:03:04]} Nh6 {[%emt 0:08:28]} 29. Be3 {[%emt 0:04:51]} Nd8 {[%emt 0:00:07]} 30. Bxc5 {[%emt 0:00:03]} Rxe1+ {[%emt 0:00:09]} 31. Rxe1 {[%emt 0:00:15]} Nb7 32. d4 {[%emt 0:00:05]} Nxc5 {[%emt 0:00:44]} 33. dxc5 {[%emt 0:00:11]} Bf8 {[%emt 0:00:09]} 34. b4 {[%emt 0:00:30]} a5 {[%emt 0:00:56]} 35. Nd4 {[%emt 0:00:42]} axb4 {[%emt 0:01:05]} 36. cxb4 {[%emt 0:00:06]} Ra8 {[%emt 0:00:16]} 37. Bb3 {[%emt 0:02:19]} Rd8 {[%emt 0:01:24]} 38. Rd1 {[%emt 0:01:59]} Rb8 {[%emt 0:00:35]} 39. f3 {[%emt 0:02:48]} Ng8 {[%emt 0:01:17]} 40. Be6 {[%emt 0:03:12]} h5 {[%emt 0:00:32]} 41. Nc6 {[%emt 0:32:47]} Rb7 {[%emt 0:30:34]} 42. Bd7 {[%emt 0:06:36]} Bh6 {[%emt 0:00:36]} 43. Nd8 {[%emt 0:02:14]} Ra7 {[%emt 0:00:12]} 44. c6 {[%emt 0:01:19]} g4 {[%emt 0:00:23]} 45. Nf7+ {[%emt 0:06:07]} Kg7 {[%emt 0:00:06]} 46. Nxh6 {[%emt 0:00:03]} Kxh6 {[%emt 0:00:08]} 47. Rc1 {[%emt 0:02:15]} Rc7 {[%emt 0:00:06]} 48. a4 {[%emt 0:00:29]} Ne7 {[%emt 0:00:29]} 49. Rc5 {[%emt 0:01:35]} bxa4 {[%emt 0:00:29]} 50. b5 {[%emt 0:00:11]} 1-0

[Event "FRA-chT Top 12 2019"]
[Site "Brest"]
[Date "2019.05.18"]
[Round "1.8"]
[White "Haussernot, Cecile"]
[Black "Adrian, Claude"]
[Result "1/2-1/2"]
[ECO "C15"]
[WhiteElo "2097"]
[BlackElo "2238"]
[Annotator "NA"]
[PlyCount "62"]
[EventDate "2019.05.18"]
[EventType "team-tourn"]
[EventCountry "FRA"]
[SourceTitle "playchess.com"]
[Source "ChessBase"]
[SourceQuality "1"]
[TimeControl "40/5400+30:1800+30"]

1. e4 {[%emt 0:00:00]} e6 {[%emt 0:00:00]} 2. d4 {[%emt 0:00:00]} d5 {[%emt 0:00:00]} 3. Nc3 {[%emt 0:00:00]} Bb4 {[%emt 0:00:00]} 4. exd5 {[%emt 0:00:00]} exd5 {[%emt 0:00:00]} 5. Bd3 {[%emt 0:00:00]} Nc6 {[%emt 0:02:28]} 6. Nge2 {[%emt 0:00:27]} Nf6 {[%emt 0:04:02]} 7. Bg5 {[%emt 0:15:02]} h6 {[%emt 0:04:13]} 8. Bf4 {[%emt 0:02:11]} O-O {[%emt 0:03:18]} 9. Qd2 {[%emt 0:01:12]} Ne4 {[%emt 0:12:37]} 10. Bxe4 {[%emt 0:01:56]} dxe4 {[%emt 0:01:56]} 11. O-O-O {[%emt 0:02:10]} Qe7 {[%emt 0:17:55]} 12. d5 {[%emt 0:05:13]} Ne5 {[%emt 0:05:36]} 13. Qd4 {[%emt 0:05:15]} Ng6 {[%emt 0:01:41]} 14. d6 {[%emt 0:13:38]} Bxd6 {[%emt 0:01:32]} 15. Bxd6 {[%emt 0:00:05]} cxd6 {[%emt 0:02:28]} 16. Qxe4 {[%emt 0:11:14]} Be6 {[%emt 0:02:56]} 17. h4 {[%emt 0:05:44]} Rac8 {[%emt 0:02:53]} 18. h5 {[%emt 0:04:36]} Ne5 {[%emt 0:04:27]} 19. Rd4 {[%emt 0:04:01]} Nc6 {[%emt 0:07:01]} 20. Rd3 {[%emt 0:01:58]} d5 {[%emt 0:02:28]} 21. Qf4 {[%emt 0:03:08]} Rfd8 {[%emt 0:11:02]} 22. Rg3 {[%emt 0:00:59]} Qc7 {[%emt 0:03:46]} 23. Qxc7 {[%emt 0:00:27]} Rxc7 {[%emt 0:00:02]} 24. Nb5 {[%emt 0:00:09]} Rcc8 {[%emt 0:01:28]} 25. Nbd4 {[%emt 0:00:11]} Nxd4 {[%emt 0:04:43]} 26. Nxd4 {[%emt 0:00:05]} Rc4 {[%emt 0:00:09]} 27. c3 {[%emt 0:00:35]} a6 {[%emt 0:01:21]} 28. Re1 {[%emt 0:03:19]} Rd6 {[%emt 0:00:21]} 29. f4 {[%emt 0:00:47]} Kf8 {[%emt 0:01:07]} 30. Rge3 {[%emt 0:02:26]} Bd7 {[%emt 0:00:07]} 31. Re7 {[%emt 0:03:34]} Rc8 {[%emt 0:00:56]} 1/2-1/2